Cogmind - Beta 17 @@@ ROGUE MODE // 2026.08.03 @ 22:56:07 Player: C0-RV5 Result: Destroyed by G-47 Trooper with Particle Gun Performance ------------- Evolutions (3) 1500 Regions Visited (5) 1000 Robots Destroyed (65) 325 Value Destroyed (1726) 1726 Prototype IDs (8) 160 Alien Tech Used (0) 0 Bonus (0) 0 TOTAL SCORE: 4711 Bonus ------- None Cogmind --------- Core Integrity 0/700 Matter 208/300 Energy 330/330 System Corruption 41% Temperature Cool (21) Movement Walking (120) Location -7/Storage Parts ------- > --- POWER (2) -------- Heavy Ion Engine Micro Nuclear Core > --- PROPULSION (3) --- Improved Carbon-fiber Leg Improved Carbon-fiber Leg Improved Carbon-fiber Leg > --- UTILITY (5) ------ Small Storage Unit Weight Redist. System Visual Processing Unit Improved Light Armor Plating > --- WEAPON (3) ------- Cooled Particle Cannon Cooled Particle Cannon Chainsword > --- INVENTORY (8) ---- Improved Carbon-fiber Leg Wheel Wheel Weight Redist. System Heavy Laser Cooled Pulse Rifle Chainsword Spear Peak State ------------ > --- POWER ------------ Heavy Ion Engine Micro Nuclear Core > --- PROPULSION ------- Improved Carbon-fiber Leg Improved Carbon-fiber Leg Improved Carbon-fiber Leg > --- UTILITY ---------- Small Storage Unit Huge Storage Unit Weight Redist. System Visual Processing Unit Improved Light Armor Plating > --- WEAPON ----------- Cooled Particle Cannon Flak Gun Chainsword > --- INVENTORY -------- Improved Carbon-fiber Leg Wheel Wheel Wheel Weight Redist. System Heavy Laser Cooled Pulse Rifle Chainsword Spear [Rating: 43] Favorites ----------- Power Ion Engine Engine Ion Engine Power Core Light Nuclear Core Propulsion Improved Titanium Leg Treads Light Treads Leg Improved Titanium Leg Wheel Compact Wheel Utility Small Storage Unit Device ECM Suite Storage Small Storage Unit Processor Visual Processing Unit Hackware Hacking Suite Protection Propulsion Shielding Weapon Great Maul Energy Gun Small Laser Energy Cannon Beam Cannon Ballistic Gun Assault Rifle Launcher EMP Blaster Impact Weapon Great Maul Slashing Weapon Chainsword Piercing Weapon Spear Build | -11 -10 -9 -8 -7 -7 ------- Run | Yrd Mat Mat Mat Fac Sto Slots Evolved 6 | . . 2 2 2 . Power 1 | . . . 1 . . Propulsion 1 | . . . 1 . . Utility 3 | . . 2 . 1 . Weapon 1 | . . . . 1 . Parts Attached 75 | 5 2 19 11 1 37 Power 12 | 1 . 2 1 . 8 Engine 6 | 1 . 2 1 . 2 Core 6 | . . . . . 6 Reactor . | . . . . . . Propulsion 25 | 2 . 5 5 . 13 Treads 5 | . . 3 1 . 1 Leg 14 | . . 2 4 . 8 Wheel 6 | 2 . . . . 4 Hover . | . . . . . . Flight . | . . . . . . Utility 20 | . 2 8 2 . 8 Device 8 | . . 4 1 . 3 Storage 6 | . 1 2 1 . 2 Processor 1 | . . 1 . . . Hackware 1 | . . . . . 1 Protection 4 | . 1 1 . . 2 Artifact . | . . . . . . Weapon 18 | 2 . 4 3 1 8 Energy Gun 3 | 1 . . . 1 1 Energy Cannon 3 | . . 1 . . 2 Ballistic Gun 2 | 1 . . . . 1 Ballistic Cannon . | . . . . . . Launcher 3 | . . 1 . . 2 Special Weapon . | . . . . . . Impact Weapon 4 | . . 2 2 . . Slashing Weapon 2 | . . . . . 2 Piercing Weapon 1 | . . . 1 . . Special Melee Weapon . | . . . . . . Unidentified Prototypes 5 | . . . . 1 4 Corrupted Parts 4 | . . . . . 4 System Corruption 32 | . . . . . 32 Parts Lost 44 | . . 9 8 2 25 Power 8 | . . 2 2 . 4 Propulsion 15 | . . 3 2 1 9 Utility 13 | . . 4 3 1 5 Weapon 8 | . . . 1 . 7 Highest Loss Streak 12 | . . 3 4 1 12 To Critical Strikes . | . . . . . . Average Backups 6 | 2 5 7 7 6 6 Power . | . 1 . . . . Propulsion 1 | 1 2 1 1 . . Utility 1 | . . 1 1 1 1 Weapon 3 | . 1 3 4 4 4 Tool/Special . | . . . . . . Unused Backups 6 | . . 2 . . 4 Power . | . . . . . . Propulsion 1 | . . . . . 1 Utility 2 | . . 1 . . 1 Weapon 3 | . . 1 . . 2 Tool/Special . | . . . . . . Average Slot Usage (%) 81 | . 96 90 85 54 71 Engine 7 | . 14 10 9 . 2 Core 1 | . . . . . 5 Treads 5 | . . 9 5 . 2 Leg 10 | . . 6 19 9 9 Wheel 4 | . 26 4 . . 3 Device 7 | . . 11 11 . 3 Storage 10 | . 12 11 11 14 8 Processor 6 | . . 5 9 7 7 Protection 4 | . 12 8 1 . 1 Energy Gun 1 | . 14 . . . . Energy Cannon 1 | . . 2 . . 3 Ballistic Gun 1 | . 14 . . . 1 Impact Weapon 10 | . . 16 11 13 5 Slashing Weapon 1 | . . . . . 5 Piercing Weapon 3 | . . . 6 7 4 Peak Build Rating 43 | 5 7 17 29 25 43 Average Rating 19 | 3 6 13 24 19 27 On Entrance 10 | . 5 7 14 20 19 Avg Prop Armor Cover (%) 11 | . . . . 12 11 Naked Turns . | . . . . . . Heaviest Build 108 | 8 14 96 25 16 108 Greatest Support 63 | 32 32 43 63 40 60 Greatest Overweight (x) 5 | . . 5 . . 3 Average Overweight (x) . | . . . . . . Largest Inventory Capacity 25 | 5 8 25 8 8 25 Average Capacity 8 | 5 7 10 8 7 8 Most Carried 10 | 5 7 9 8 7 10 Average Carried 6 | 3 5 7 7 6 6 Final Capacity 8 | 5 8 8 8 5 8 Final Carried 8 | 5 6 6 7 5 8 Class Distribution -------------------- 90% | Mutant 9% | Scavenger-Mutant Dominant Class ---------------- Mutant | -10/Materials Mutant | -9/Materials Mutant | -8/Materials Mutant | -7/Factory Mutant | -7/Storage Resources | -11 -10 -9 -8 -7 -7 ----------- Run | Yrd Mat Mat Mat Fac Sto Matter Collected 925 | 222 25 228 123 25 302 Remotely . | . . . . . . Salvage Created 2060 | . 44 545 474 97 900 Parts 97 | . 4 35 10 2 46 Haulers Intercepted . | . . . . . . Recyclers Shooed 1 | . . . . . 1 Parts Field Recycled . | . . . . . . Retrieved Matter . | . . . . . . Parts Self-Destructed . | . . . . . . Prevented . | . . . . . . Parts Restored . | . . . . . . Kills | -11 -10 -9 -8 -7 -7 ------- Run | Yrd Mat Mat Mat Fac Sto Combat Hostiles Destroyed 51 | . 3 20 14 2 12 Melee 21 | . . 5 8 1 7 Guns 4 | . 3 . . . 1 Cannons 6 | . . 5 . . 1 AOE 5 | . . 3 . . 2 Classes Destroyed 12 | . 1 5 1 1 4 Worker 5 | . . . . . 5 Builder 2 | . . . . 1 1 Tunneler 1 | . . 1 . . . Recycler 3 | . . 2 . . 1 Mechanic 1 | . . . . . 1 Watcher 2 | . . 1 1 . . Swarmer 22 | . 3 14 4 1 . Grunt 16 | . . 4 7 . 5 Duelist 2 | . . . 1 1 . Sentry 9 | . . 2 2 . 5 Hunter 1 | . . . . . 1 Programmer 1 | . . . . . 1 Best Kill Streak 7 | . 3 6 3 2 7 Combat Bots Only 6 | . 3 6 3 2 3 Max Kills in Single Turn 2 | . 1 2 1 1 2 Gunslinging . | . . . . . . Exploded 2 | . . 2 . . 1 Melee 1 | . . 1 1 1 1 Uniques/NPCs Destroyed . | . . . . . . Combat | -11 -10 -9 -8 -7 -7 -------- Run | Yrd Mat Mat Mat Fac Sto Hostile Shots Fired 669 | . 20 173 109 55 312 Missed 201 | . 2 50 26 22 101 Hits 468 | . 18 123 83 33 211 Melee 8 | . . . 5 3 . Projectile 460 | . 18 123 78 30 211 Critical Strikes 12 | . 1 2 4 1 4 Actively Blocked 1 | . . . 1 . . Damage Taken 5637 | . 134 1126 1237 315 2825 Core 1275 | . 19 168 373 95 620 Absorbed by Shields . | . . . . . . Redirected to Shielding 50 | . 6 24 20 . . Regen/Repaired (Parts) 5 | . 5 . . . . Core Remaining (%) 70 | 100 92 58 32 . . Volleys Fired 62 | . 8 21 . . 33 Largest 2 | . 2 1 . . 2 Hottest 60 | . 60 60 . . 60 Shots Fired 79 | . 16 21 . . 42 Gun 24 | . 16 . . . 8 Cannon 40 | . . 15 . . 25 Launcher 15 | . . 6 . . 9 Special . | . . . . . . Kinetic 10 | . 8 . . . 2 Thermal 54 | . 8 15 . . 31 Explosive 2 | . . . . . 2 Electromagnetic 13 | . . 6 . . 7 Robot Hit Streak 9 | . 2 3 . . 9 Robot Miss Streak 6 | . 1 5 . . 6 Penetration Max . | . . . . . . Secondary Targets . | . . . . . . Shots Hit Robots 144 | . 9 42 44 4 45 Core Hits 52 | . 3 13 6 1 29 Critical Kills 2 | . . 1 . . 1 Critical Parts Destroyed 14 | . . 7 4 1 2 Critical Strikes 20 | . . 8 5 1 6 Burn 1 | . . . . . 1 Smash 16 | . . 8 4 1 3 Sever 2 | . . . . . 2 Impale 1 | . . . 1 . . Melee Attacks 157 | . . 48 61 5 43 Impact 121 | . . 48 51 5 17 Slashing 23 | . . . . . 23 Piercing 13 | . . . 10 . 3 Sneak Attacks 7 | . . 4 . 1 2 Combat Hostiles . | . . . . . . Follow-up Attacks 20 | . . 5 10 . 5 Damage Inflicted 6153 | . 118 2052 1792 180 2011 Guns 249 | . 118 . . . 131 Cannons 346 | . . 104 . . 242 Explosions 746 | . . 68 . . 678 Melee 4812 | . . 1880 1792 180 960 Ramming . | . . . . . . Kinetic 125 | . 86 . . . 39 Thermal 506 | . 32 104 . . 370 Explosive 161 | . . . . . 161 Electromagnetic 549 | . . 68 . . 481 Impact 4042 | . . 1880 1605 180 377 Slashing 557 | . . . . . 557 Piercing 213 | . . . 187 . 26 Highest Corruption 41 | . . . . . 41 Average Corruption 34 | . . . . . 34 Corruption Purged . | . . . . . . Corruption Blocked . | . . . . . . Effects 19 | . . . . . 19 Message Errors 3 | . . . . . 3 Matter Fused 3 | . . . . . 3 Heat Flow Errors 5 | . . . . . 5 Energy Discharges 1 | . . . . . 1 Parts Fused 1 | . . . . . 1 Data Loss (minor) 1 | . . . . . 1 Misdirections 2 | . . . . . 2 Weapon Failures 3 | . . . . . 3 Overload Shots . | . . . . . . Overflow Damage 1380 | . . 688 456 67 169 Projectiles . | . . . . . . Explosions 33 | . . . . . 33 Melee 1347 | . . 688 456 67 136 Knockbacks 14 | . . 3 8 1 2 Impact 13 | . . 3 8 1 1 Kinetic . | . . . . . . Secondary 1 | . . . . . 1 Self-Inflicted Damage 127 | . . 6 . . 121 Shots 5 | . . 1 . . 4 Rammed . | . . . . . . Targets Rammed . | . . . . . . Kicked . | . . . . . . Crushed . | . . . . . . Highest Temperature 227 | . . 91 4 . 227 Average Temperature 40 | . . 33 4 . 44 Received Heat Transfer 1776 | . . 216 540 6 1014 Effects 1 | . . . . . 1 Interference 1 | . . . . . 1 Siege Activations . | . . . . . . Martial Activations . | . . . . . . Shielding Activations . | . . . . . . Robots Disrupted . | . . . . . . Combat Hostiles . | . . . . . . Robots Corrupted 19 | . . 8 7 2 2 Combat Hostiles 15 | . . 7 6 1 1 Parts Fried 27 | . . 8 11 3 5 Impact Corruptions 50 | . . 23 20 3 4 Robots Melted . | . . . . . . Combat Hostiles . | . . . . . . Parts Melted 1 | . . . . . 1 Heat Transferred 939 | . 75 222 . . 642 Parts Sabotaged . | . . . . . . Parts Stolen . | . . . . . . Parts Stripped . | . . . . . . Power Chain Reactions 1 | . . . . . 1 Alert | -11 -10 -9 -8 -7 -7 ------- Run | Yrd Mat Mat Mat Fac Sto Maximum Alert Level 1 | . . 1 . . . Low Security (%) 95 | 100 100 86 100 100 100 Level 1 4 | . . 13 . . . Level 2 . | . . . . . . Level 3 . | . . . . . . Level 4 . | . . . . . . Level 5 . | . . . . . . High Security . | . . . . . . Max Security . | . . . . . . Peak Influence 232 | . 60 232 127 40 100 Initial 72 | . . . 72 18 . Average 63 | . 27 100 78 7 33 Influence Increases 1622 | . 96 576 399 50 501 Destroy 0b10 Robot/C 1020 | . 60 400 280 40 240 Destroy 0b10 Robot/NC 70 | . . 20 5 5 40 Destroy Leader 234 | . 10 72 52 . 100 Successful Hack 66 | . 26 9 15 5 11 Disable Machine 45 | . . . . . 45 Destroy Structure 37 | . . . 2 . 35 Lose Combat Pursuer 150 | . . 75 45 . 30 Influence Decreases 1595 | . 96 404 530 91 474 Entered New Map 123 | . . . 100 23 . Time Decay 1144 | . 96 334 350 68 296 Lost Part 328 | . . 70 80 . 178 Squads Dispatched 7 | . . 1 1 . 5 Investigation 1 | . . . . . 1 Extermination 1 | . . . . . 1 Reinforcement 5 | . . 1 1 . 3 Assault . | . . . . . . Garrison . | . . . . . . Intercept . | . . . . . . Searches Triggered . | . . . . . . Construction Impeded 1 | . . . . . 1 Haulers Reinforced 1 | . . . . . 1 Active Scanning Responses . | . . . . . . Cargo Convoy Interrupts . | . . . . . . Stealth | -11 -10 -9 -8 -7 -7 --------- Run | Yrd Mat Mat Mat Fac Sto Distress Signals 2 | . . 1 . . 1 Communications Jammed . | . . . . . . Distress Signals . | . . . . . . Times Spotted 76 | . 3 27 20 4 22 Peak Tracking Total 6 | . 3 6 5 2 5 Tactical Retreats 7 | . . 4 2 . 1 Traps | -11 -10 -9 -8 -7 -7 ------- Run | Yrd Mat Mat Mat Fac Sto Traps Triggered 6 | . 1 4 . 1 . Indirectly 3 | . . 3 . . . Trap Hack Attempts . | . . . . . . Triggered . | . . . . . . Disarmed . | . . . . . . Reprogrammed . | . . . . . . Reused . | . . . . . . Traps Extracted . | . . . . . . Installed . | . . . . . . Triggered . | . . . . . . Machines | -11 -10 -9 -8 -7 -7 ---------- Run | Yrd Mat Mat Mat Fac Sto Machines Disabled 3 | . . . . . 3 Max in Single Turn 1 | . . . . . 1 Machines Repaired . | . . . . . . Machines Dismantled . | . . . . . . Machines Sabotaged . | . . . . . . Overloaded Fab Kills . | . . . . . . Hacking | -11 -10 -9 -8 -7 -7 --------- Run | Yrd Mat Mat Mat Fac Sto Machines Accessed 17 | . 5 4 3 1 4 Terminals 13 | . 4 3 3 1 2 Fabricators . | . . . . . . Repair Stations 1 | . 1 . . . . Recycling Units 3 | . . 1 . . 2 Scanalyzers . | . . . . . . Garrison Access . | . . . . . . Total Hacks 26 | . 9 6 4 1 6 Successful 17 | . 6 6 2 1 2 Failed 9 | . 3 . 2 . 4 Catastrophic 2 | . . . 1 . 1 Database Lockouts . | . . . . . . Manual 1 | . . . 1 . . Terminals 18 | . 6 4 4 1 3 Fabricators . | . . . . . . Repair Stations 3 | . 3 . . . . Recycling Units 5 | . . 2 . . 3 Scanalyzers . | . . . . . . Garrison Access . | . . . . . . Terminal Hacks 13 | . 4 4 2 1 2 Record 2 | . 1 . 1 . . Part Schematic 1 | . . . . . 1 Robot Analysis 1 | . 1 . . . . Prototype ID Bank 1 | . 1 . . . . Open Door 1 | . . . . . 1 Open DSF 1 | . . . . 1 . Emergency Access Points 2 | . . 2 . . . Zone Layout 4 | . 1 2 1 . . Fabricator Hacks . | . . . . . . Repair Station Hacks 2 | . 2 . . . . Scan Component 1 | . 1 . . . . Repair 1 | . 1 . . . . Recycling Unit Hacks 2 | . . 2 . . . Report Inventory 1 | . . 1 . . . Retrieve Components 1 | . . 1 . . . Scanalyzer . | . . . . . . Garrison Access Hacks . | . . . . . . Unauthorized Hacks . | . . . . . . Terminals . | . . . . . . Fabricators . | . . . . . . Repair Stations . | . . . . . . Recycling Units . | . . . . . . Scanalyzers . | . . . . . . Garrison Access . | . . . . . . Data Cores Recovered . | . . . . . . Used . | . . . . . . Hacking Detections 7 | . 3 1 . . 3 Full Trace Events 1 | . . . . . 1 Feedback Events . | . . . . . . Feedback Blocked . | . . . . . . Robot Schematics Acquired . | . . . . . . Robots Built . | . . . . . . Authchips . | . . . . . . Time . | . . . . . . Total Robot Build Rating . | . . . . . . Part Schematics Acquired 1 | . . . . . 1 Parts Built . | . . . . . . Authchips . | . . . . . . Time . | . . . . . . Total Part Build Rating . | . . . . . . Part Studies Acquired . | . . . . . . Parts Repaired 1 | . 1 . . . . Time 26 | . 26 . . . . Parts Recycled . | . . . . . . Recycled Matter . | . . . . . . Retrieved Matter . | . . . . . . Retrieved Components 10 | . . 10 . . . Parts Scanalyzed . | . . . . . . Part Schematics Acquired . | . . . . . . Parts Damaged . | . . . . . . Bothacking | -11 -10 -9 -8 -7 -7 ------------ Run | Yrd Mat Mat Mat Fac Sto Used RIF Installer . | . . . . . . Robots Hacked . | . . . . . . Non-combat . | . . . . . . Combat . | . . . . . . Robot Hacks Applied . | . . . . . . Relay Couplers Released . | . . . . . . Fabnet Peak Effective % . | . . . . . . Robots Rewired . | . . . . . . Allies Hacked . | . . . . . . Hacks Repelled . | . . . . . . Allies | -11 -10 -9 -8 -7 -7 -------- Run | Yrd Mat Mat Mat Fac Sto Total Allies . | . . . . . . Largest Group . | . . . . . . Highest-Rated Group . | . . . . . . Highest-Rated Ally . | . . . . . . Total Orders . | . . . . . . Ally Attacks . | . . . . . . Total Damage . | . . . . . . Kills . | . . . . . . Allies Corrupted . | . . . . . . Allies Melted . | . . . . . . Intel | -11 -10 -9 -8 -7 -7 ------- Run | Yrd Mat Mat Mat Fac Sto Active Infowar (turns) 2929 | . . 1079 795 284 771 Optics 2361 | . . 511 795 284 771 Traps 114 | . . . 114 . . Seismic 600 | . . 600 . . . ECM 26 | . . 26 . . . Robot Analysis Total 1 | . 1 . . . . Derelict Logs Recovered . | . . . . . . Drone Launches . | . . . . . . Drone Recoveries . | . . . . . . Exploration | -11 -10 -9 -8 -7 -7 ------------- Run | Yrd Mat Mat Mat Fac Sto Turns Passed 3269 | 60 265 1094 795 284 771 Spaces Moved 1807 | 50 224 540 415 200 378 Core 20 | 4 . . . . 16 Treads 436 | . . 238 71 17 110 Legs 788 | . . 125 344 183 136 Wheels 563 | 46 224 177 . . 116 Hover . | . . . . . . Flight . | . . . . . . Fastest Speed 50 | 50 100 100 130 130 80 Average Speed 133 | 96 100 151 135 132 131 Slowest Speed 260 | 100 100 260 160 160 240 Overloaded Moves . | . . . . . . Propulsion Burnouts . | . . . . . . Robots Hopped . | . . . . . . Potential Cave-ins . | . . . . . . Cave-ins Triggered 1 | . . . . . 1 Exploration Rate (%) 28 | 3 37 51 41 3 35 Regions Visited 5 Branch Regions 1 Pre-discovered Areas . | . . . . . . Known Exits Taken . | . . . . . . Unknown Exits Taken 5 | 1 1 1 1 1 . Scrap Searched . | . . . . . . Spaces Dug 3 | . . . 2 . 1 Terrain Destroyed 33 | . . . 2 . 31 Melee 3 | . . . 2 . 1 Projectile 12 | . . . . . 12 AOE 18 | . . . . . 18 Terrain Rammed . | . . . . . . Walls Destroyed . | . . . . . . Machines Disabled . | . . . . . . Actions | -11 -10 -9 -8 -7 -7 --------- Run | Yrd Mat Mat Mat Fac Sto Total 2293 | 59 248 703 542 209 532 Wait 144 | . 10 55 58 . 21 Move 1802 | 49 223 539 414 199 378 Hop . | . . . . . . Pick Up 44 | 5 3 14 6 1 15 Fast Attach 43 | 5 2 7 4 1 24 Attach 28 | . 2 8 4 2 12 Detach 3 | . . 1 . . 2 Swap 17 | . . 7 4 . 6 Drop 17 | . . 8 2 1 6 Fire 62 | . 8 21 . . 33 Melee 133 | . . 43 50 5 35 Ram . | . . . . . . Kick . | . . . . . . Crush . | . . . . . . Escape Stasis . | . . . . . . Rewire . | . . . . . . Trap . | . . . . . . Miscellaneous . | . . . . . . Route ------- -11/Scrapyard -10/Materials (discovered 2 exits: *Mat / [*Min]) -9/Materials -8/Materials -7/Factory (discovered 2 exits: [*Fac] / *Sto) -7/Storage History --------- Turn | Location | Event 13 | -11/Scrapyard | Discovered new exit (range 16) 61 | -11/Scrapyard | Entered Materials 177 | -10/Materials | Discovered new exit (range 16) 279 | -10/Materials | Repaired Com. Wheel 303 | -10/Materials | Build established: Mutant 320 | -10/Materials | Discovered new exit (range 5) 326 | -10/Materials | Entered another Materials area 326 | -9/Materials | Evolved 2 slots: Utility x2 972 | -9/Materials | Lost 3 parts (1n2u) 1392 | -9/Materials | Discovered new exit (range 9) 1420 | -9/Materials | Entered another Materials area 1420 | -8/Materials | Evolved 2 slots: Power x1, Propulsion x1 2125 | -8/Materials | Core integrity fell below 50% 2130 | -8/Materials | Discovered new exit (range 18) 2153 | -8/Materials | Lost 4 parts (1p2n1u) 2215 | -8/Materials | Entered Factory 2215 | -7/Factory | Evolved 2 slots: Utility x1, Weapon x1 2267 | -7/Factory | Identified exit to DSF 2360 | -7/Factory | Discovered new exit (range 16) 2362 | -7/Factory | Discovered new exit (range 16) 2499 | -7/Factory | Entered Storage 2643 | -7/Storage | Lost 7 parts (2p2n1u2w) 2777 | -7/Storage | Core integrity fell below 50% 2830 | -7/Storage | Lost 4 parts (2n1u1w) 3006 | -7/Storage | Crushed by falling debris 3006 | -7/Storage | Core integrity fell below 20% 3049 | -7/Storage | System corruption reached 10% 3077 | -7/Storage | System corruption reached 30% 3091 | -7/Storage | Lost 12 parts (2p4n2u4w) 3270 | -7/Storage | Destroyed by G-47 Trooper with Particle Gun Last Messages --------------- 03177_ Identified Cld. Particle Cannon. 03186_ Dropped Wheel. 03186_ Dropped Huge Storage Unit. 03188_ Discarded Flak Gun. 03188_ Acquired Cld. Particle Cannon. 03193_ System corrupted: Component data lost. 03202_ G-47 Trooper destroyed. 03208_ Acquired 58 matter. 03210_ OIJ%WGHKNVKPYD072C6L4HRSEU 03226_ System corrupted: Heat flow error (+122). 03238_ Critical hit (Burn: +37). 03238_ System corrupted: Cld. Particle Cannon failed to cycle. 03241_ K-01 Serf destroyed. 03244_ System corrupted: Matter fused (-10). 03247_ System corrupted: Cld. Particle Cannon failed to cycle. 03254_ U-05 Engineer builds a Wall. 03263_ E Q:BKZOWVZE| NAOGUI/ P1 Map ----- +----------------------------------------------------+ | ???????# """=!" #???????????????????? | | ???????# ""]*" #???????????????????? | | ???????# "*"" #???????????????????? | | ???????# % #???????????????????? | | ???????########+##???????????????????? | | ############# +???????????????????? | | #???????????????????? | | #???????????????????? | | ############ #???????????????????? | | ?????######### ##???????????????????? | | ?????# # ##???????????????????? | | ?????# !+ ##???????????????????? | | ?????# = ! #% #?????#####?????????? | | ????## =% ! # ##?????#]]]#?????????? | | ????##[%%| #??????#!] #?????????? | | ????## ! = #%!#?????## = ####??????? | | ?????# #= #?????#T ## ######## | | ?????# # ####??;#;#;## # | | ?????# # ##"""##; # """ # | | ?????# # ! * = # """ # | | ?????# # %* = " """ # | | ?????##############"""##gg # # | | ????????????????## ##;g ## # | | ????????????????#T ##; ## # | | ???????????????###" "#### ## !!!# | | ???????????????# !##;@ ## !!!# | | ???????????????# !### ####" "#### | | ???????????????# ===#?# T#?#"T"#??? | | ???????????????#== ===#?# ##?#"""#??? | | ???????????????########?""""??#####??? | | ?????????????????????????????????????? | | ?????????????????????????????????????? | | ?????????????????????????????????????? | | ?????????????????????????????????????? | | ?????????????????????????????????????? | | ?????????????????????????????????????? | | ?????????????????????????????????????? | | ?????????????????????????????????????? | | | | | | | | | | | | | | | | | | | | | | | | | +----------------------------------------------------+ Best States ------------- Heat Dissipation 48 Energy Generation 26 Energy Capacity 480 Matter Stores 300 Matter Capacity 300 Sight Range 18 Terrain Scan Density 10 ECM Strength 1 Additional Mass Support 6 Armor Coverage 225 Propulsion Shielding 33 Evasion (%) 58 Recoil Reduction 3 Offensive Hacking 10 Item Schematics ----------------- Chainsword | -7/Storage | Hacked Robot Schematics ------------------ None Fabricated ------------ Nothing Repaired ---------- Com. Wheel | 83% | -10/Materials Studied --------- None Alien Tech Used ----------------- None Achievements -------------- Let's See Who's Tougher That Tickles Unlikely Earthworm Challenges ------------ None Game ------ Seed BorgReactiveScrap Manual? 0 Play Time 00:56:34 Cumulative 8.3 hours Start 2026.08.03 @ 21:43:52 End 2026.08.03 @ 22:56:07 Sessions 1 Manual Loads 0 Difficulty Rogue Special Mode None Game No. 10 Rogue 10 Adventurer 0 Explorer 0 Win Type - Total 0 Types 0/0/0/0/0/0/0/0/0/0 Lore% 21 Gallery% 12 Achievement% 13 Wizard Run 0 Options --------- Layout 1 ASCII 0 Keyboard 1 Movement Vi Keybinds 0 Fullscreen 2 Font 28/SmallcapsGlow Map View 59x39 Zoom Use 0% Tactical HUD 1 Map Filters NONE Filters NONE Steam 0 RUN: 7bc10c89-1a4c-44bf-be3d-746afb20473b